[Event "2nd Gujarat Open 2019"]
[Site "Ahmedabad, Gujarat"]
[Date "2019.09.26"]
[Round "7.32"]
[White "Sanket Chakravarty"]
[Black "Vijay, Anand M."]
[Result "1-0"]
[ECO "A36"]
[WhiteElo "2158"]
[BlackElo "1806"]
[Annotator "NA"]
[PlyCount "147"]
[EventDate "2019.09.22"]
[EventType "swiss"]
[EventCountry "IND"]
[SourceTitle "playchess.com"]
[Source "ChessBase"]
[SourceQuality "1"]
[TimeControl "5400+30"]

1. c4 {[%emt 0:00:52]} c5 {[%emt 0:00:51]} 2. g3 {[%emt 0:00:11]} g6 {[%emt 0:00:27]} 3. Nc3 {[%emt 0:00:15]} Bg7 {[%emt 0:00:22]} 4. Bg2 {[%emt 0:00:10]} Nc6 {[%emt 0:00:14]} 5. e4 {[%emt 0:00:33]} d6 {[%emt 0:01:42]} 6. Nge2 {[%emt 0:02:04]} e6 {[%emt 0:00:23]} 7. d3 {[%emt 0:00:45]} Nge7 {[%emt 0:00:12]} 8. Be3 {[%emt 0:00:11]} Nd4 {[%emt 0:02:20]} 9. O-O {[%emt 0:03:36]} O-O {[%emt 0:00:54]} 10. f4 {[%emt 0:01:17]} f5 {[%emt 0:02:23]} 11. Rb1 {[%emt 0:01:04]} Rb8 {[%emt 0:02:15]} 12. a3 {[%emt 0:12:13]} Nec6 {[%emt 0:09:51]} 13. b4 {[%emt 0:02:44]} b6 {[%emt 0:02:08]} 14. bxc5 {[%emt 0:14:41]} dxc5 15. e5 {[%emt 0:00:30]} Bb7 16. Nb5 {[%emt 0:00:30]} Nxb5 {[%emt 0:00:00]} 17. Rxb5 {[%emt 0:00:30]} Rf7 {[%emt 0:00:00]} 18. Qc2 {[%emt 0:00:30]} Rd7 {[%emt 0:00:00]} 19. Rd1 {[%emt 0:20:08]} Bf8 {[%emt 0:25:26]} 20. Rb3 {[%emt 0:03:29]} Qc7 {[%emt 0:02:49]} 21. h3 {[%emt 0:08:06]} Rbd8 {[%emt 0:02:00]} 22. Kh2 {[%emt 0:01:54]} Bh6 {[%emt 0:12:51]} 23. Bf2 {[%emt 0:03:21]} Na5 {[%emt 0:01:56]} 24. Rc3 {[%emt 0:02:05]} Bxg2 {[%emt 0:03:46]} 25. Kxg2 {[%emt 0:00:10]} Qb7+ {[%emt 0:00:22]} 26. Kh2 {[%emt 0:02:54]} Nc6 {[%emt 0:02:47]} 27. Rb3 {[%emt 0:03:12]} Na5 {[%emt 0:07:04]} 28. Rc3 {[%emt 0:02:51]} Nc6 {[%emt 0:00:31]} 29. Rb3 {[%emt 0:00:38]} Na5 {[%emt 0:04:41]} 30. Rbb1 {[%emt 0:04:52]} Qf3 {[%emt 0:02:32]} 31. Ng1 {[%emt 0:00:08]} Qh5 {[%emt 0:00:24]} 32. Kg2 {[%emt 0:02:03]} g5 {[%emt 0:00:44]} 33. fxg5 {[%emt 0:00:45]} Bxg5 {[%emt 0:00:32]} 34. Nf3 {[%emt 0:00:05]} Nc6 {[%emt 0:00:15]} 35. Qe2 {[%emt 0:01:01]} Bh6 {[%emt 0:01:12]} 36. Kh2 {[%emt 0:01:43]} Bg7 {[%emt 0:00:35]} 37. Rb2 {[%emt 0:00:01]} Kh8 {[%emt 0:02:15]} 38. Rbd2 {[%emt 0:00:07]} Bh6 {[%emt 0:00:08]} 39. Be3 {[%emt 0:00:05]} Bxe3 {[%emt 0:01:58]} 40. Qxe3 {[%emt 0:00:01]} Nd4 {[%emt 0:00:12]} 41. Nxd4 {[%emt 0:01:01]} Rxd4 {[%emt 0:00:08]} 42. Rf1 {[%emt 0:00:06]} Qg6 {[%emt 0:05:55]} 43. Rf4 {[%emt 0:00:34]} Rxf4 {[%emt 0:01:59]} 44. Qxf4 {[%emt 0:00:05]} Rd4 {[%emt 0:00:07]} 45. Qf3 {[%emt 0:00:18]} Qf7 {[%emt 0:00:07]} 46. Re2 {[%emt 0:02:29]} Qd7 {[%emt 0:01:08]} 47. Re3 {[%emt 0:00:04]} h6 {[%emt 0:02:56]} 48. g4 {[%emt 0:01:55]} f4 {[%emt 0:00:43]} 49. Re4 {[%emt 0:00:05]} Rxd3 {[%emt 0:01:09]} 50. Qxf4 {[%emt 0:00:01]} Qg7 {[%emt 0:00:46]} 51. Qf6 {[%emt 0:01:09]} Qxf6 {[%emt 0:00:55]} 52. exf6 {[%emt 0:00:01]} Rd6 {[%emt 0:00:01]} 53. Kg3 {[%emt 0:00:55]} Kg8 {[%emt 0:00:04]} 54. Kh4 {[%emt 0:03:36]} Kf7 {[%emt 0:01:05]} 55. Kh5 {[%emt 0:00:01]} Rd3 {[%emt 0:00:43]} 56. h4 {[%emt 0:00:05]} Rd4 {[%emt 0:00:16]} 57. Rxd4 {[%emt 0:01:40]} cxd4 {[%emt 0:00:04]} 58. Kxh6 {[%emt 0:00:01]} d3 {[%emt 0:00:36]} 59. g5 {[%emt 0:00:01]} d2 {[%emt 0:00:06]} 60. g6+ {[%emt 0:00:03]} Kxf6 {[%emt 0:00:38]} 61. g7 {[%emt 0:00:02]} d1=Q {[%emt 0:00:31]} 62. g8=Q Qa4 {[%emt 0:01:30]} 63. Qg5+ {[%emt 0:02:49]} Kf7 {[%emt 0:00:01]} 64. Qg7+ {[%emt 0:00:31]} Ke8 {[%emt 0:00:03]} 65. Qg4 {[%emt 0:01:00]} Ke7 {[%emt 0:00:29]} 66. h5 {[%emt 0:00:16]} Qxa3 {[%emt 0:00:36]} 67. Kg7 Qa1+ {[%emt 0:01:04]} 68. Kg8 {[%emt 0:00:12]} Qf1 {[%emt 0:00:41]} 69. Qg7+ {[%emt 0:00:11]} Ke8 {[%emt 0:00:34]} 70. h6 {[%emt 0:00:36]} Qxc4 {[%emt 0:00:32]} 71. Qf7+ {[%emt 0:00:05]} Kd8 {[%emt 0:00:01]} 72. h7 {[%emt 0:00:05]} Qg4+ {[%emt 0:00:04]} 73. Qg7 {[%emt 0:00:04]} Qc4 {[%emt 0:01:02]} 74. h8=Q {[%emt 0:00:06]} 1-0

[Event "2nd Gujarat Open 2019"]
[Site "Ahmedabad, Gujarat"]
[Date "2019.09.26"]
[Round "7.33"]
[White "Saypuri Srithan"]
[Black "Aradhya, Garg"]
[Result "0-1"]
[ECO "B13"]
[WhiteElo "1865"]
[BlackElo "2157"]
[Annotator "NA"]
[PlyCount "60"]
[EventDate "2019.09.22"]
[EventType "swiss"]
[EventCountry "IND"]
[SourceTitle "playchess.com"]
[Source "ChessBase"]
[SourceQuality "1"]
[TimeControl "5400+30"]

1. e4 {[%emt 0:11:05]} c6 {[%emt 0:00:00]} 2. d4 {[%emt 0:00:07]} d5 {[%emt 0:00:00]} 3. exd5 {[%emt 0:00:04]} cxd5 {[%emt 0:00:00]} 4. c4 {[%emt 0:00:07]} Nf6 {[%emt 0:00:00]} 5. Nc3 {[%emt 0:00:05]} Nc6 {[%emt 0:00:08]} 6. Nf3 {[%emt 0:00:22]} Be6 7. c5 {[%emt 0:11:03]} g6 {[%emt 0:05:03]} 8. Bb5 {[%emt 0:01:33]} Bg7 {[%emt 0:00:46]} 9. Ne5 {[%emt 0:01:51]} Bd7 {[%emt 0:02:46]} 10. Nxd7 {[%emt 0:02:09]} Nxd7 {[%emt 0:01:24]} 11. Be3 {[%emt 0:08:11]} O-O {[%emt 0:08:50]} 12. Qa4 {[%emt 0:00:00]} e5 {[%emt 0:00:30]} 13. O-O {[%emt 0:00:00]} exd4 {[%emt 0:00:30]} 14. Bxc6 {[%emt 0:00:00]} Nxc5 {[%emt 0:00:30]} 15. Qb4 {[%emt 0:00:00]} dxe3 {[%emt 0:00:30]} 16. Qxc5 {[%emt 0:00:00]} exf2+ {[%emt 0:00:30]} 17. Kh1 {[%emt 0:00:00]} bxc6 {[%emt 0:18:58]} 18. Qxc6 {[%emt 0:35:00]} Rc8 {[%emt 0:00:11]} 19. Qxd5 {[%emt 0:02:42]} Qxd5 {[%emt 0:04:46]} 20. Nxd5 {[%emt 0:00:27]} Rc2 {[%emt 0:00:05]} 21. Rab1 {[%emt 0:00:34]} Bxb2 {[%emt 0:01:19]} 22. g3 {[%emt 0:01:01]} Bd4 {[%emt 0:04:43]} 23. Rb4 {[%emt 0:03:03]} Bc5 {[%emt 0:04:00]} 24. Rb5 {[%emt 0:00:38]} Rd8 {[%emt 0:00:42]} 25. Nf6+ {[%emt 0:00:12]} Kg7 {[%emt 0:00:15]} 26. Ne4 {[%emt 0:00:03]} Bd4 {[%emt 0:02:37]} 27. a4 {[%emt 0:01:22]} Re8 {[%emt 0:00:31]} 28. Nd6 {[%emt 0:00:46]} Re1 {[%emt 0:00:09]} 29. Rb1 {[%emt 0:00:03]} Rce2 {[%emt 0:00:14]} 30. Nb5 {[%emt 0:00:49]} Rxb1 {[%emt 0:00:09]} 0-1

[Event "2nd Gujarat Open 2019"]
[Site "Ahmedabad, Gujarat"]
[Date "2019.09.26"]
[Round "7.34"]
[White "Anustoop Biswas"]
[Black "Tamhankar, Siddhant"]
[Result "1-0"]
[ECO "B20"]
[WhiteElo "2154"]
[BlackElo "1750"]
[Annotator "NA"]
[PlyCount "73"]
[EventDate "2019.09.22"]
[EventType "swiss"]
[EventCountry "IND"]
[SourceTitle "playchess.com"]
[Source "ChessBase"]
[SourceQuality "1"]
[TimeControl "5400+30"]

1. e4 {[%emt 0:00:30]} c5 {[%emt 0:00:00]} 2. b3 {[%emt 0:00:30]} d6 {[%emt 0:02:01]} 3. Bb2 {[%emt 0:00:30]} Nf6 {[%emt 0:02:45]} 4. Bb5+ {[%emt 0:00:30]} Bd7 {[%emt 0:00:35]} 5. Bxd7+ {[%emt 0:00:04]} Qxd7 {[%emt 0:00:44]} 6. Nc3 {[%emt 0:00:49]} Nc6 7. f4 {[%emt 0:00:31]} g6 {[%emt 0:03:42]} 8. Nf3 {[%emt 0:01:48]} Bg7 {[%emt 0:01:47]} 9. Qe2 {[%emt 0:01:11]} O-O {[%emt 0:03:06]} 10. O-O {[%emt 0:01:09]} Nh5 {[%emt 0:07:20]} 11. f5 {[%emt 0:11:04]} Rac8 {[%emt 0:09:46]} 12. Nd1 {[%emt 0:07:51]} a6 13. Bxg7 {[%emt 0:00:30]} Kxg7 {[%emt 0:00:00]} 14. Ne3 {[%emt 0:00:30]} Nf6 {[%emt 0:29:29]} 15. Nd5 {[%emt 0:23:30]} Qd8 {[%emt 0:13:36]} 16. c3 {[%emt 0:00:42]} Ne5 {[%emt 0:02:07]} 17. fxg6 {[%emt 0:07:52]} hxg6 {[%emt 0:01:51]} 18. Ng5 {[%emt 0:01:26]} Rh8 {[%emt 0:03:57]} 19. h3 {[%emt 0:04:44]} Rh5 {[%emt 0:01:02]} 20. Qe3 {[%emt 0:00:34]} c4 {[%emt 0:03:48]} 21. Qg3 {[%emt 0:07:29]} b5 {[%emt 0:05:53]} 22. bxc4 {[%emt 0:00:03]} Nxc4 {[%emt 0:00:59]} 23. d3 {[%emt 0:00:57]} Ne5 {[%emt 0:02:19]} 24. Nf4 {[%emt 0:06:59]} Qb6+ {[%emt 0:00:18]} 25. d4 {[%emt 0:00:03]} Rh6 {[%emt 0:00:12]} 26. Rf2 {[%emt 0:00:38]} Ned7 {[%emt 0:01:16]} 27. Raf1 {[%emt 0:01:33]} e6 {[%emt 0:01:49]} 28. e5 {[%emt 0:00:44]} dxe5 {[%emt 0:00:13]} 29. dxe5 {[%emt 0:00:05]} Nh5 {[%emt 0:00:55]} 30. Nxh5+ {[%emt 0:01:14]} Rxh5 {[%emt 0:00:01]} 31. Kh1 {[%emt 0:00:31]} f5 {[%emt 0:01:26]} 32. exf6+ {[%emt 0:00:02]} Kf8 {[%emt 0:00:10]} 33. Qg4 {[%emt 0:04:26]} Nc5 {[%emt 0:02:43]} 34. Re2 {[%emt 0:00:38]} Rc6 {[%emt 0:00:35]} 35. f7 {[%emt 0:03:46]} Rd6 {[%emt 0:00:08]} 36. Qxh5 {[%emt 0:00:23]} gxh5 {[%emt 0:00:14]} 37. Nh7+ {[%emt 0:00:05]} 1-0

[Event "2nd Gujarat Open 2019"]
[Site "Ahmedabad, Gujarat"]
[Date "2019.09.26"]
[Round "7.35"]
[White "Aditya P Melani"]
[Black "Joshi, Govind Ballabh"]
[Result "1/2-1/2"]
[ECO "A13"]
[WhiteElo "1847"]
[BlackElo "2118"]
[Annotator "NA"]
[PlyCount "78"]
[EventDate "2019.09.22"]
[EventType "swiss"]
[EventCountry "IND"]
[SourceTitle "playchess.com"]
[Source "ChessBase"]
[SourceQuality "1"]
[TimeControl "5400+30"]

1. c4 {[%emt 0:00:42]} e6 {[%emt 0:00:08]} 2. Nf3 {[%emt 0:00:25]} d5 {[%emt 0:00:02]} 3. g3 {[%emt 0:00:11]} Nf6 {[%emt 0:01:13]} 4. Bg2 {[%emt 0:00:09]} dxc4 {[%emt 0:00:37]} 5. Na3 {[%emt 0:00:07]} Bxa3 {[%emt 0:03:14]} 6. bxa3 {[%emt 0:00:04]} O-O {[%emt 0:02:47]} 7. Bb2 {[%emt 0:00:08]} Nc6 {[%emt 0:02:41]} 8. Qc2 {[%emt 0:00:08]} Re8 {[%emt 0:01:52]} 9. Qxc4 {[%emt 0:00:08]} e5 {[%emt 0:00:26]} 10. Ng5 {[%emt 0:00:32]} Qe7 {[%emt 0:10:39]} 11. O-O {[%emt 0:00:04]} h6 {[%emt 0:10:32]} 12. Ne4 {[%emt 0:00:02]} Nd7 {[%emt 0:04:45]} 13. e3 {[%emt 0:14:53]} Nb6 {[%emt 0:03:00]} 14. Qc2 {[%emt 0:03:39]} Bf5 {[%emt 0:02:52]} 15. f4 {[%emt 0:18:50]} exf4 {[%emt 0:00:30]} 16. Rxf4 {[%emt 0:00:30]} Bg6 {[%emt 0:00:30]} 17. Qc3 {[%emt 0:00:30]} Ne5 {[%emt 0:00:30]} 18. Nc5 {[%emt 0:00:30]} c6 {[%emt 0:00:30]} 19. Qxe5 {[%emt 0:00:30]} Qxe5 {[%emt 0:00:30]} 20. Bxe5 {[%emt 0:00:30]} Rxe5 {[%emt 0:00:30]} 21. Nxb7 {[%emt 0:00:30]} Rc8 {[%emt 0:20:04]} 22. Rc1 {[%emt 0:09:30]} c5 {[%emt 0:03:45]} 23. a4 {[%emt 0:03:28]} Rc7 {[%emt 0:11:13]} 24. d4 {[%emt 0:03:29]} Rxe3 {[%emt 0:02:37]} 25. dxc5 {[%emt 0:01:52]} Rd3 {[%emt 0:03:16]} 26. Rb4 {[%emt 0:11:40]} Rd2 {[%emt 0:07:36]} 27. c6 {[%emt 0:11:15]} Nd5 {[%emt 0:02:04]} 28. Rb3 {[%emt 0:00:57]} Nf6 {[%emt 0:01:04]} 29. Na5 {[%emt 0:03:51]} Be4 {[%emt 0:00:40]} 30. Bxe4 {[%emt 0:00:53]} Nxe4 {[%emt 0:00:15]} 31. Rb7 {[%emt 0:00:31]} Ng5 {[%emt 0:01:22]} 32. Kf1 {[%emt 0:05:01]} Rc8 {[%emt 0:02:48]} 33. c7 {[%emt 0:00:49]} Kh7 {[%emt 0:00:08]} 34. Rb8 {[%emt 0:02:26]} Nf3 {[%emt 0:00:07]} 35. Rb3 {[%emt 0:01:54]} Rxh2 {[%emt 0:00:20]} 36. Rd1 {[%emt 0:03:17]} Rd2 {[%emt 0:01:26]} 37. Rc1 Rh2 38. Rd1 Nd2+ 39. Rxd2 Rxd2 1/2-1/2

[Event "2nd Gujarat Open 2019"]
[Site "Ahmedabad, Gujarat"]
[Date "2019.09.26"]
[Round "7.36"]
[White "Pimpalkhare Vedant"]
[Black "Chilukuri Sai Varshith"]
[Result "1/2-1/2"]
[ECO "A01"]
[WhiteElo "2104"]
[BlackElo "1813"]
[Annotator "NA"]
[PlyCount "104"]
[EventDate "2019.09.22"]
[EventType "swiss"]
[EventCountry "IND"]
[SourceTitle "playchess.com"]
[Source "ChessBase"]
[SourceQuality "1"]
[TimeControl "5400+30"]

1. b3 {[%emt 0:00:00]} Nf6 {[%emt 0:00:42]} 2. Bb2 {[%emt 0:00:00]} g6 {[%emt 0:02:19]} 3. Bxf6 {[%emt 0:00:31]} exf6 {[%emt 0:00:09]} 4. c4 {[%emt 0:00:05]} Bg7 {[%emt 0:01:27]} 5. Nc3 {[%emt 0:00:05]} f5 {[%emt 0:00:21]} 6. Rc1 {[%emt 0:00:01]} b6 {[%emt 0:00:05]} 7. e3 {[%emt 0:04:57]} Bb7 {[%emt 0:00:04]} 8. Nf3 {[%emt 0:00:24]} O-O {[%emt 0:00:44]} 9. Be2 {[%emt 0:00:31]} d6 {[%emt 0:05:05]} 10. O-O {[%emt 0:02:22]} Nd7 {[%emt 0:04:20]} 11. Re1 {[%emt 0:08:47]} Nf6 {[%emt 0:05:38]} 12. d3 {[%emt 0:01:42]} c5 {[%emt 0:05:07]} 13. d4 {[%emt 0:10:25]} Ne4 {[%emt 0:00:37]} 14. Nd5 {[%emt 0:01:42]} Nf6 {[%emt 0:01:17]} 15. Nc3 {[%emt 0:16:42]} Ne4 {[%emt 0:00:17]} 16. Nd5 {[%emt 0:02:15]} Nf6 {[%emt 0:01:58]} 17. Nf4 {[%emt 0:05:31]} Ne4 {[%emt 0:03:17]} 18. Qd3 {[%emt 0:11:16]} Bc6 {[%emt 0:03:26]} 19. Rcd1 {[%emt 0:07:17]} Qc7 {[%emt 0:01:00]} 20. Nd2 {[%emt 0:03:50]} Rfe8 {[%emt 0:03:57]} 21. Bf3 {[%emt 0:07:54]} Qe7 {[%emt 0:02:16]} 22. Nf1 {[%emt 0:04:58]} Rad8 {[%emt 0:01:00]} 23. Ng3 {[%emt 0:02:01]} Bb7 {[%emt 0:01:54]} 24. Qc2 {[%emt 0:02:26]} Ba8 {[%emt 0:01:55]} 25. Bxe4 {[%emt 0:01:21]} fxe4 {[%emt 0:00:07]} 26. dxc5 {[%emt 0:00:04]} dxc5 {[%emt 0:00:10]} 27. Rxd8 {[%emt 0:00:07]} Rxd8 {[%emt 0:00:07]} 28. Rd1 {[%emt 0:00:30]} f5 {[%emt 0:00:30]} 29. Nge2 {[%emt 0:02:10]} Be5 {[%emt 0:01:40]} 30. g3 {[%emt 0:01:30]} Bc6 {[%emt 0:00:26]} 31. Rd2 {[%emt 0:01:33]} Rxd2 {[%emt 0:00:29]} 32. Qxd2 {[%emt 0:00:01]} Qd6 {[%emt 0:00:09]} 33. Qxd6 {[%emt 0:00:05]} Bxd6 {[%emt 0:00:04]} 34. Nc3 {[%emt 0:00:58]} Bxf4 {[%emt 0:00:07]} 35. exf4 {[%emt 0:00:39]} Kf7 {[%emt 0:00:09]} 36. Kf1 {[%emt 0:00:05]} Ke6 {[%emt 0:00:14]} 37. Ke2 {[%emt 0:00:06]} h5 {[%emt 0:00:13]} 38. h4 {[%emt 0:02:37]} Kd6 {[%emt 0:00:04]} 39. Ke3 {[%emt 0:00:05]} Ke6 {[%emt 0:00:12]} 40. Nb1 {[%emt 0:01:31]} Kd6 {[%emt 0:00:08]} 41. Nc3 {[%emt 0:00:20]} Ke6 {[%emt 0:00:06]} 42. Nb1 {[%emt 0:00:01]} Kd6 {[%emt 0:00:05]} 43. Na3 {[%emt 0:00:55]} Ke6 {[%emt 0:00:04]} 44. Nc2 {[%emt 0:00:43]} Kd6 {[%emt 0:00:05]} 45. Na3 {[%emt 0:00:47]} Ke6 {[%emt 0:00:04]} 46. Nb1 {[%emt 0:00:14]} Kd6 {[%emt 0:00:04]} 47. Nc3 {[%emt 0:00:03]} Ke6 {[%emt 0:00:03]} 48. Ne2 {[%emt 0:00:05]} Kd6 {[%emt 0:00:09]} 49. Ng1 {[%emt 0:00:59]} Ke6 {[%emt 0:00:10]} 50. Nh3 {[%emt 0:00:10]} Kf7 {[%emt 0:00:24]} 51. Ng5+ {[%emt 0:00:31]} Kf6 {[%emt 0:00:05]} 52. Nh3 {[%emt 0:00:16]} Ke6 1/2-1/2

[Event "2nd Gujarat Open 2019"]
[Site "Ahmedabad, Gujarat"]
[Date "2019.09.27"]
[Round "8.1"]
[White "Rozum, Ivan"]
[Black "Manush Shah"]
[Result "1-0"]
[ECO "B10"]
[WhiteElo "2596"]
[BlackElo "2352"]
[Annotator "ChessBase"]
[PlyCount "123"]
[EventDate "2019.09.22"]
[EventType "swiss"]
[EventCountry "IND"]
[SourceTitle "playchess.com"]
[Source "ChessBase"]
[SourceQuality "1"]
[TimeControl "5400+30"]

1. e4 {[%emt 0:01:25]} c6 {[%emt 0:00:00]} 2. Nc3 {[%emt 0:00:06]} d5 {[%emt 0:00:00]} 3. Nf3 {[%emt 0:00:05]} dxe4 {[%emt 0:00:00]} 4. Nxe4 {[%emt 0:00:07]} Nf6 {[%emt 0:00:14]} 5. Qe2 Nxe4 {[%emt 0:00:15]} 6. Qxe4 {[%emt 0:00:15]} Qd5 {[%emt 0:00:06]} 7. Qh4 {[%emt 0:00:08]} Bf5 {[%emt 0:00:08]} 8. Bc4 {[%emt 0:01:15]} Qd6 {[%emt 0:01:51]} 9. d3 {[%emt 0:09:37]} e6 {[%emt 0:02:42]} 10. Bf4 {[%emt 0:07:33]} Qb4+ {[%emt 0:03:34]} 11. Bd2 {[%emt 0:03:00]} Qd6 {[%emt 0:12:04]} 12. O-O-O {[%emt 0:10:51]} Be7 {[%emt 0:01:14]} 13. Qg3 {[%emt 0:00:53]} Qxg3 {[%emt 0:01:37]} 14. hxg3 {[%emt 0:00:43]} h6 {[%emt 0:06:20]} 15. Bc3 {[%emt 0:08:52]} O-O {[%emt 0:02:18]} 16. Ne5 {[%emt 0:00:45]} b5 {[%emt 0:12:40]} 17. Bb3 {[%emt 0:01:41]} a5 {[%emt 0:01:03]} 18. a4 {[%emt 0:01:52]} Bf6 {[%emt 0:02:48]} 19. Rde1 {[%emt 0:04:54]} Bxe5 {[%emt 0:05:36]} 20. Bxe5 {[%emt 0:00:58]} Nd7 {[%emt 0:00:02]} 21. Bd4 {[%emt 0:01:47]} Rfc8 {[%emt 0:01:29]} 22. Be3 {[%emt 0:01:46]} Rab8 {[%emt 0:02:38]} 23. Rh4 {[%emt 0:02:59]} Nb6 {[%emt 0:07:04]} 24. g4 bxa4 {[%emt 0:01:49]} 25. Bxa4 {[%emt 0:08:23]} Bg6 {[%emt 0:05:16]} 26. g5 {[%emt 0:06:12]} Nxa4 {[%emt 0:01:57]} 27. Rxa4 {[%emt 0:00:05]} hxg5 {[%emt 0:00:57]} 28. Bxg5 {[%emt 0:00:27]} Rb5 {[%emt 0:04:33]} 29. Bd2 {[%emt 0:00:54]} Rh5 {[%emt 0:05:01]} 30. Rxa5 {[%emt 0:00:36]} Rxa5 {[%emt 0:01:35]} 31. Bxa5 {[%emt 0:00:02]} Ra8 {[%emt 0:00:07]} 32. Re5 {[%emt 0:00:56]} Rb8 {[%emt 0:00:58]} 33. Bd2 {[%emt 0:09:13]} Kf8 {[%emt 0:06:32]} 34. Ra5 {[%emt 0:00:48]} f6 {[%emt 0:00:57]} 35. Ra7 {[%emt 0:01:02]} Rc8 {[%emt 0:01:16]} 36. Bb4+ {[%emt 0:01:20]} Kg8 {[%emt 0:01:26]} 37. Bc5 {[%emt 0:00:06]} e5 {[%emt 0:00:34]} 38. f3 {[%emt 0:02:39]} Bf7 {[%emt 0:01:49]} 39. Kd2 {[%emt 0:00:35]} Bd5 {[%emt 0:00:24]} 40. b3 {[%emt 0:03:03]} Re8 {[%emt 0:01:21]} 41. Rc7 {[%emt 0:02:07]} Rb8 {[%emt 0:02:00]} 42. Ba7 {[%emt 0:01:47]} Ra8 {[%emt 0:00:22]} 43. Kc3 {[%emt 0:00:50]} g5 {[%emt 0:01:06]} 44. Kd2 {[%emt 0:02:54]} Bf7 {[%emt 0:02:00]} 45. Ke3 {[%emt 0:01:23]} Be8 {[%emt 0:02:42]} 46. b4 {[%emt 0:00:07]} Rd8 {[%emt 0:00:18]} 47. g3 {[%emt 0:02:27]} Rd7 {[%emt 0:00:48]} 48. Rc8 {[%emt 0:00:07]} Kf7 {[%emt 0:00:23]} 49. Bc5 {[%emt 0:00:02]} f5 {[%emt 0:00:55]} 50. g4 {[%emt 0:01:43]} fxg4 {[%emt 0:00:41]} 51. fxg4 {[%emt 0:00:02]} Rb7 {[%emt 0:00:01]} 52. Ke4 {[%emt 0:00:37]} Bd7 {[%emt 0:00:06]} 53. Rf8+ {[%emt 0:00:07]} Kg7 {[%emt 0:00:21]} 54. Rf1 {[%emt 0:01:01]} Bxg4 {[%emt 0:00:35]} 55. Rg1 {[%emt 0:00:01]} Be6 {[%emt 0:00:13]} 56. Kxe5 {[%emt 0:00:22]} Bd5 {[%emt 0:01:35]} 57. Rxg5+ {[%emt 0:00:05]} Kf7 {[%emt 0:00:18]} 58. Kd6 {[%emt 0:01:02]} Kf6 {[%emt 0:00:19]} 59. Rg1 {[%emt 0:00:56]} Rf7 {[%emt 0:01:01]} 60. Rf1+ {[%emt 0:00:51]} Kg6 {[%emt 0:00:01]} 61. Rxf7 {[%emt 0:00:20]} Kxf7 {[%emt 0:00:01]} 62. b5 {[%emt 0:00:13]} 1-0